[Event "Early-Titled-Tuesday-Blitz-September-05-2023"]
[Site "Chess.com"]
[Date "2023.09.05"]
[Round "3"]
[White "kikoveiga"]
[Black "Khromkin"]
[Result "1-0"]
[WhiteElo "2600"]
[BlackElo "2414"]
[TimeControl "180+1"]
[EndTime "8:27:22 PDT"]
[Termination "kikoveiga won by resignation"]

1. c4 {[%clk 0:02:49.7]} 1... c5 {[%clk 0:02:58.9]} 2. Nf3 {[%clk 0:02:49.4]}
2... Nc6 {[%clk 0:02:58]} 3. a3 {[%clk 0:02:49]} 3... g6 {[%clk 0:02:58.2]} 4.
Nc3 {[%clk 0:02:49.3]} 4... Bg7 {[%clk 0:02:56.5]} 5. Rb1 {[%clk 0:02:49.7]}
5... a6 {[%clk 0:02:56.1]} 6. b4 {[%clk 0:02:49]} 6... cxb4 {[%clk 0:02:53.7]}
7. axb4 {[%clk 0:02:49.9]} 7... d6 {[%clk 0:02:47.8]} 8. d4 {[%clk 0:02:49.7]}
8... b5 {[%clk 0:02:43]} 9. cxb5 {[%clk 0:02:46]} 9... axb5 {[%clk 0:02:43.1]}
10. e3 {[%clk 0:02:41.5]} 10... Bf5 {[%clk 0:02:34.9]} 11. e4 {[%clk 0:02:37.6]}
11... Bd7 {[%clk 0:02:26.7]} 12. Bxb5 {[%clk 0:02:34.7]} 12... Rb8 {[%clk
0:02:03.6]} 13. Bxc6 {[%clk 0:02:24.9]} 13... Bxc6 {[%clk 0:02:03.2]} 14. O-O
{[%clk 0:02:25.4]} 14... Nf6 {[%clk 0:02:01.9]} 15. d5 {[%clk 0:02:23.8]} 15...
Bd7 {[%clk 0:01:55.7]} 16. Nd4 {[%clk 0:02:21.9]} 16... O-O {[%clk 0:01:48.7]}
17. b5 {[%clk 0:02:14.1]} 17... Ng4 {[%clk 0:01:46]} 18. h3 {[%clk 0:02:12.7]}
18... Ne5 {[%clk 0:01:44.6]} 19. Qb3 {[%clk 0:01:43.7]} 19... f5 {[%clk
0:01:22.8]} 20. Nc6 {[%clk 0:01:24.8]} 20... Bxc6 {[%clk 0:01:18.8]} 21. dxc6+
{[%clk 0:01:25.7]} 21... Kh8 {[%clk 0:01:18.5]} 22. Qc2 {[%clk 0:01:01]} 22...
fxe4 {[%clk 0:00:43.2]} 23. Nxe4 {[%clk 0:00:48]} 23... Qc8 {[%clk 0:00:43]} 24.
Be3 {[%clk 0:00:36.8]} 24... Rf3 {[%clk 0:00:33.3]} 25. Ng5 {[%clk 0:00:31.5]}
25... Rf5 {[%clk 0:00:20.2]} 26. Rfc1 {[%clk 0:00:30.3]} 26... h6 {[%clk
0:00:18.1]} 27. Ne4 {[%clk 0:00:30.2]} 27... Rf3 {[%clk 0:00:17.6]} 28. Ng3
{[%clk 0:00:19.5]} 28... h5 {[%clk 0:00:12.6]} 29. c7 {[%clk 0:00:10.4]} 29...
Rb7 {[%clk 0:00:12.8]} 30. gxf3 {[%clk 0:00:10.6]} 30... h4 {[%clk 0:00:10.5]}
31. Ne4 {[%clk 0:00:10.5]} 31... Qxh3 {[%clk 0:00:08.9]} 32. c8=Q+ {[%clk
0:00:10.4]} 32... Qxc8 {[%clk 0:00:07.5]} 33. Qxc8+ {[%clk 0:00:11.3]} 1-0

[Event "Early-Titled-Tuesday-Blitz-September-05-2023"]
[Site "Chess.com"]
[Date "2023.09.05"]
[Round "3"]
[White "Ducke13"]
[Black "MikeSailer"]
[Result "1-0"]
[WhiteElo "2419"]
[BlackElo "2168"]
[TimeControl "180+1"]
[EndTime "8:27:23 PDT"]
[Termination "Ducke13 won by checkmate"]

1. d4 {[%clk 0:02:55.6]} 1... d5 {[%clk 0:02:58.4]} 2. g3 {[%clk 0:02:51.7]}
2... Nf6 {[%clk 0:02:52.4]} 3. Nf3 {[%clk 0:02:48.4]} 3... Bf5 {[%clk
0:02:52.6]} 4. c4 {[%clk 0:02:48.7]} 4... e6 {[%clk 0:02:52.3]} 5. Nc3 {[%clk
0:02:49.1]} 5... c6 {[%clk 0:02:52]} 6. Nh4 {[%clk 0:02:48.8]} 6... Bg4 {[%clk
0:02:51.5]} 7. h3 {[%clk 0:02:48.8]} 7... Bh5 {[%clk 0:02:51.5]} 8. g4 {[%clk
0:02:49.5]} 8... Ne4 {[%clk 0:02:51.4]} 9. Nxe4 {[%clk 0:02:48.3]} 9... dxe4
{[%clk 0:02:51.3]} 10. Qb3 {[%clk 0:02:43.7]} 10... Qxh4 {[%clk 0:02:29.4]} 11.
Qxb7 {[%clk 0:02:32.6]} 11... Bg6 {[%clk 0:02:14.6]} 12. c5 {[%clk 0:02:14.3]}
12... Qd8 {[%clk 0:01:55.6]} 13. Qxa8 {[%clk 0:02:13.2]} 13... e5 {[%clk
0:01:41.5]} 14. e3 {[%clk 0:01:55.4]} 14... exd4 {[%clk 0:01:32.3]} 15. exd4
{[%clk 0:01:56.3]} 15... Be7 {[%clk 0:01:23.6]} 16. Qxa7 {[%clk 0:01:54.2]}
16... O-O {[%clk 0:01:20.8]} 17. Be3 {[%clk 0:01:54.2]} 17... Bg5 {[%clk
0:01:03.3]} 18. Qa3 {[%clk 0:01:51.4]} 18... f5 {[%clk 0:00:53.6]} 19. Bc4+
{[%clk 0:01:50.9]} 19... Kh8 {[%clk 0:00:54.3]} 20. gxf5 {[%clk 0:01:46.4]}
20... Bxf5 {[%clk 0:00:46.5]} 21. O-O-O {[%clk 0:01:42.1]} 21... Bxe3+ {[%clk
0:00:30.9]} 22. Qxe3 {[%clk 0:01:24]} 22... Nd7 {[%clk 0:00:16.9]} 23. h4 {[%clk
0:01:20.2]} 23... Qa5 {[%clk 0:00:07.7]} 24. h5 {[%clk 0:01:15.8]} 24... h6
{[%clk 0:00:05.1]} 25. Rhg1 {[%clk 0:01:12.2]} 25... Bh7 {[%clk 0:00:04.4]} 26.
Qc3 {[%clk 0:01:10.8]} 26... Qa7 {[%clk 0:00:04.1]} 27. d5 {[%clk 0:01:02.4]}
27... Nxc5 {[%clk 0:00:02.7]} 28. dxc6 {[%clk 0:00:58.9]} 28... Nd3+ {[%clk
0:00:03.6]} 29. Kb1 {[%clk 0:00:48.9]} 29... Rxf2 {[%clk 0:00:04]} 30. Bxd3
{[%clk 0:00:31]} 30... exd3 {[%clk 0:00:04.9]} 31. Ka1 {[%clk 0:00:25.1]} 31...
Rf8 {[%clk 0:00:03.1]} 32. c7 {[%clk 0:00:22]} 32... Ra8 {[%clk 0:00:03.6]} 33.
Qxg7# {[%clk 0:00:20.8]} 1-0

[Event "Early-Titled-Tuesday-Blitz-September-05-2023"]
[Site "Chess.com"]
[Date "2023.09.05"]
[Round "3"]
[White "twofoxniel"]
[Black "stasOR4ik"]
[Result "1-0"]
[WhiteElo "2667"]
[BlackElo "2473"]
[TimeControl "180+1"]
[EndTime "8:27:24 PDT"]
[Termination "twofoxniel won by resignation"]

1. e4 {[%clk 0:03:00.9]} 1... c6 {[%clk 0:03:00.1]} 2. d4 {[%clk 0:03:00.7]}
2... d5 {[%clk 0:03:01]} 3. Nd2 {[%clk 0:03:00.3]} 3... dxe4 {[%clk 0:03:01.4]}
4. Nxe4 {[%clk 0:03:01.2]} 4... Nf6 {[%clk 0:03:02.1]} 5. Nxf6+ {[%clk
0:02:55.2]} 5... exf6 {[%clk 0:03:03]} 6. c3 {[%clk 0:02:55.5]} 6... Bd6 {[%clk
0:03:03.1]} 7. Bd3 {[%clk 0:02:56]} 7... O-O {[%clk 0:03:01.5]} 8. Qc2 {[%clk
0:02:56.5]} 8... h5 {[%clk 0:03:00.9]} 9. Ne2 {[%clk 0:02:57]} 9... Qc7 {[%clk
0:02:55]} 10. h3 {[%clk 0:02:55.9]} 10... Re8 {[%clk 0:02:53]} 11. O-O {[%clk
0:02:56.5]} 11... Nd7 {[%clk 0:02:51.2]} 12. Bd2 {[%clk 0:02:56.7]} 12... Nb6
{[%clk 0:02:49.5]} 13. c4 {[%clk 0:02:49.2]} 13... c5 {[%clk 0:02:44.9]} 14. d5
{[%clk 0:02:47]} 14... Nd7 {[%clk 0:02:40]} 15. f4 {[%clk 0:02:42.3]} 15... a6
{[%clk 0:02:27.2]} 16. a4 {[%clk 0:02:41.1]} 16... Nf8 {[%clk 0:02:15.7]} 17.
Nc3 {[%clk 0:02:29.2]} 17... Bd7 {[%clk 0:02:03.6]} 18. Ne4 {[%clk 0:02:23.3]}
18... Re7 {[%clk 0:02:01.6]} 19. Nxd6 {[%clk 0:02:21.4]} 19... Qxd6 {[%clk
0:02:01.7]} 20. Rae1 {[%clk 0:02:13.1]} 20... Rae8 {[%clk 0:02:00]} 21. Rxe7
{[%clk 0:02:12.8]} 21... Rxe7 {[%clk 0:02:00.3]} 22. b3 {[%clk 0:02:06.5]} 22...
b5 {[%clk 0:01:47.8]} 23. axb5 {[%clk 0:02:07.4]} 23... axb5 {[%clk 0:01:47.8]}
24. Ra1 {[%clk 0:01:57.2]} 24... Re8 {[%clk 0:01:44]} 25. Qd1 {[%clk 0:01:44.2]}
25... bxc4 {[%clk 0:01:31.3]} 26. bxc4 {[%clk 0:01:43.6]} 26... Qb6 {[%clk
0:01:15.6]} 27. Rb1 {[%clk 0:01:33.7]} 27... Qa7 {[%clk 0:01:11.9]} 28. Qxh5
{[%clk 0:01:26.4]} 28... Rb8 {[%clk 0:01:00.3]} 29. Rxb8 {[%clk 0:01:22.3]}
29... Qxb8 {[%clk 0:01:01.2]} 30. Qe2 {[%clk 0:01:22.2]} 30... f5 {[%clk
0:00:40.7]} 31. Be3 {[%clk 0:01:13.6]} 31... Ng6 {[%clk 0:00:40.5]} 32. Qf2
{[%clk 0:01:12.6]} 32... Qb3 {[%clk 0:00:38.2]} 33. Bf1 {[%clk 0:01:12.4]} 33...
Bc8 {[%clk 0:00:19.7]} 34. Bxc5 {[%clk 0:01:11.2]} 34... Ba6 {[%clk 0:00:20.5]}
35. Qd4 {[%clk 0:01:09.5]} 35... Qb1 {[%clk 0:00:19.4]} 36. Bd6 {[%clk 0:00:58]}
36... Qc1 {[%clk 0:00:16.3]} 37. Kf2 {[%clk 0:00:50]} 37... Qc2+ {[%clk
0:00:15]} 38. Be2 {[%clk 0:00:48.9]} 38... Nh4 {[%clk 0:00:15.1]} 39. g3 {[%clk
0:00:47.6]} 39... Ng6 {[%clk 0:00:13.6]} 40. Qd3 {[%clk 0:00:46.9]} 40... Qb2
{[%clk 0:00:11.3]} 41. Bc5 {[%clk 0:00:42.6]} 41... Nh8 {[%clk 0:00:06.5]} 42.
Bd4 {[%clk 0:00:42.8]} 42... Qb3 {[%clk 0:00:05.5]} 43. Qxb3 {[%clk 0:00:42.4]}
1-0

[Event "Early-Titled-Tuesday-Blitz-September-05-2023"]
[Site "Chess.com"]
[Date "2023.09.05"]
[Round "3"]
[White "DawidCzerw"]
[Black "CrazyMartian"]
[Result "1-0"]
[WhiteElo "2517"]
[BlackElo "2341"]
[TimeControl "180+1"]
[EndTime "8:27:24 PDT"]
[Termination "DawidCzerw won by resignation"]

1. e4 {[%clk 0:02:59.9]} 1... c5 {[%clk 0:03:00]} 2. Nf3 {[%clk 0:02:58.1]} 2...
d5 {[%clk 0:02:59.3]} 3. Bb5+ {[%clk 0:02:49.7]} 3... Bd7 {[%clk 0:02:58]} 4.
Bxd7+ {[%clk 0:02:48.4]} 4... Qxd7 {[%clk 0:02:58.9]} 5. exd5 {[%clk 0:02:47.9]}
5... Nf6 {[%clk 0:02:56.7]} 6. O-O {[%clk 0:02:46.2]} 6... Nxd5 {[%clk
0:02:56.2]} 7. d4 {[%clk 0:02:43.4]} 7... e6 {[%clk 0:02:56.2]} 8. c4 {[%clk
0:02:43.3]} 8... Nf6 {[%clk 0:02:55.7]} 9. Nc3 {[%clk 0:02:40.7]} 9... cxd4
{[%clk 0:02:55.9]} 10. Nxd4 {[%clk 0:02:39.3]} 10... Nc6 {[%clk 0:02:56.1]} 11.
Nxc6 {[%clk 0:02:29.9]} 11... Qxc6 {[%clk 0:02:57]} 12. b3 {[%clk 0:02:28.3]}
12... Rd8 {[%clk 0:02:56.4]} 13. Qe2 {[%clk 0:02:26.7]} 13... Be7 {[%clk
0:02:54]} 14. Bb2 {[%clk 0:02:23.9]} 14... O-O {[%clk 0:02:54]} 15. Rac1 {[%clk
0:02:24]} 15... Rd7 {[%clk 0:02:50.5]} 16. Rfe1 {[%clk 0:02:12.2]} 16... Rfd8
{[%clk 0:02:50.8]} 17. Rc2 {[%clk 0:02:12.6]} 17... a6 {[%clk 0:02:49.8]} 18. h3
{[%clk 0:02:12.1]} 18... h6 {[%clk 0:02:48.6]} 19. a3 {[%clk 0:02:02.9]} 19...
Bc5 {[%clk 0:02:42.2]} 20. b4 {[%clk 0:01:57.2]} 20... Bd4 {[%clk 0:02:39.6]}
21. c5 {[%clk 0:01:51.3]} 21... Nd5 {[%clk 0:02:30.3]} 22. Ne4 {[%clk
0:01:25.7]} 22... Bxb2 {[%clk 0:02:28.5]} 23. Rxb2 {[%clk 0:01:24.6]} 23... Nf4
{[%clk 0:01:34.9]} 24. Qg4 {[%clk 0:01:24.3]} 24... Ng6 {[%clk 0:01:33.9]} 25.
Qf3 {[%clk 0:01:12.2]} 25... Rd3 {[%clk 0:01:27.5]} 26. Re3 {[%clk 0:01:03.5]}
26... Rxe3 {[%clk 0:01:07.3]} 27. Qxe3 {[%clk 0:01:00.6]} 27... Rd1+ {[%clk
0:01:05.4]} 28. Kh2 {[%clk 0:01:00.7]} 28... Qd5 {[%clk 0:01:03.1]} 29. Nc3
{[%clk 0:00:48.7]} 29... Qd3 {[%clk 0:00:34.4]} 30. Nxd1 {[%clk 0:00:47.7]}
30... Qxd1 {[%clk 0:00:35.3]} 31. Rd2 {[%clk 0:00:46.9]} 31... Qa1 {[%clk
0:00:30.3]} 32. Rd8+ {[%clk 0:00:42.2]} 32... Kh7 {[%clk 0:00:30.2]} 33. Rd7
{[%clk 0:00:41.5]} 33... Qf6 {[%clk 0:00:19.9]} 34. Rxb7 {[%clk 0:00:36.7]}
34... Nf4 {[%clk 0:00:19.9]} 35. c6 {[%clk 0:00:25.9]} 35... Qg5 {[%clk
0:00:18.5]} 36. g3 {[%clk 0:00:21.1]} 1-0

[Event "Early-Titled-Tuesday-Blitz-September-05-2023"]
[Site "Chess.com"]
[Date "2023.09.05"]
[Round "3"]
[White "Lennis93"]
[Black "FairChess_on_YouTube"]
[Result "1/2-1/2"]
[WhiteElo "2810"]
[BlackElo "3052"]
[TimeControl "180+1"]
[EndTime "8:27:28 PDT"]
[Termination "Game drawn by repetition"]

1. Nf3 {[%clk 0:03:00.9]} 1... b5 {[%clk 0:02:56.8]} 2. g3 {[%clk 0:03:00.4]}
2... Bb7 {[%clk 0:02:56.8]} 3. Bg2 {[%clk 0:03:01.1]} 3... Nf6 {[%clk
0:02:57.4]} 4. O-O {[%clk 0:03:00.2]} 4... g6 {[%clk 0:02:55.4]} 5. a4 {[%clk
0:02:56.7]} 5... b4 {[%clk 0:02:54.8]} 6. c4 {[%clk 0:02:56.8]} 6... bxc3 {[%clk
0:02:49.3]} 7. Nxc3 {[%clk 0:02:48.9]} 7... Na6 {[%clk 0:02:44.5]} 8. d4 {[%clk
0:02:46.3]} 8... Bg7 {[%clk 0:02:44.2]} 9. Qb3 {[%clk 0:02:44.6]} 9... Bxf3
{[%clk 0:02:28.6]} 10. Bxf3 {[%clk 0:02:44.2]} 10... Rb8 {[%clk 0:02:29.2]} 11.
Qc4 {[%clk 0:02:43.2]} 11... Nb4 {[%clk 0:02:29]} 12. Bf4 {[%clk 0:02:42.7]}
12... O-O {[%clk 0:02:02.3]} 13. Bxc7 {[%clk 0:02:15.5]} 13... Qc8 {[%clk
0:02:02]} 14. Rac1 {[%clk 0:02:15.6]} 14... Na6 {[%clk 0:01:51.3]} 15. Nb5
{[%clk 0:02:12.4]} 15... Nxc7 {[%clk 0:01:50.9]} 16. Nxc7 {[%clk 0:01:31.3]}
16... Rxb2 {[%clk 0:01:45.4]} 17. Rb1 {[%clk 0:01:21.9]} 17... Rxb1 {[%clk
0:01:12.4]} 18. Rxb1 {[%clk 0:01:22.8]} 18... d5 {[%clk 0:01:03.2]} 19. Qc5
{[%clk 0:01:16.9]} 19... Qf5 {[%clk 0:00:53.8]} 20. Rb7 {[%clk 0:01:08.9]} 20...
e6 {[%clk 0:00:48.7]} 21. Rxa7 {[%clk 0:01:03.7]} 21... h5 {[%clk 0:00:38.3]}
22. h4 {[%clk 0:00:51.2]} 22... Ne4 {[%clk 0:00:26.7]} 23. Bxe4 {[%clk
0:00:28.4]} 23... Qxe4 {[%clk 0:00:26.9]} 24. e3 {[%clk 0:00:28.3]} 24... g5
{[%clk 0:00:18.5]} 25. hxg5 {[%clk 0:00:27.4]} 25... h4 {[%clk 0:00:18.6]} 26.
gxh4 {[%clk 0:00:28.3]} 26... Qg4+ {[%clk 0:00:16.8]} 27. Kf1 {[%clk 0:00:28.4]}
27... Qd1+ {[%clk 0:00:17]} 28. Kg2 {[%clk 0:00:28.8]} 28... Qg4+ {[%clk
0:00:16.9]} 29. Kf1 {[%clk 0:00:29]} 29... Rb8 {[%clk 0:00:14.7]} 30. Ra8 {[%clk
0:00:28]} 30... Bf8 {[%clk 0:00:08.7]} 31. Rxb8 {[%clk 0:00:27.5]} 31... Qd1+
{[%clk 0:00:06.4]} 32. Kg2 {[%clk 0:00:27.8]} 32... Qg4+ {[%clk 0:00:07.3]} 33.
Kh1 {[%clk 0:00:25.7]} 33... Qxh4+ {[%clk 0:00:07.1]} 34. Kg1 {[%clk 0:00:26]}
34... Qg4+ {[%clk 0:00:07.8]} 35. Kh2 {[%clk 0:00:26.4]} 35... Qh4+ {[%clk
0:00:08.1]} 36. Kg2 {[%clk 0:00:26.8]} 36... Qg4+ {[%clk 0:00:08.7]} 37. Kf1
{[%clk 0:00:25.4]} 37... Qd1+ {[%clk 0:00:08.6]} 38. Kg2 {[%clk 0:00:25.7]}
38... Qg4+ {[%clk 0:00:09.2]} 39. Kf1 {[%clk 0:00:25.9]} 39... Qd1+ {[%clk
0:00:09.2]} 40. Kg2 {[%clk 0:00:26.2]} 40... Qg4+ {[%clk 0:00:09.3]} 1/2-1/2

[Event "Early-Titled-Tuesday-Blitz-September-05-2023"]
[Site "Chess.com"]
[Date "2023.09.05"]
[Round "3"]
[White "Korchmar_Vasiliy"]
[Black "Vaathi_Coming"]
[Result "1-0"]
[WhiteElo "2703"]
[BlackElo "2860"]
[TimeControl "180+1"]
[EndTime "8:27:28 PDT"]
[Termination "Korchmar_Vasiliy won on time"]

1. e4 {[%clk 0:03:00.9]} 1... c6 {[%clk 0:02:53.5]} 2. d4 {[%clk 0:03:00]} 2...
d5 {[%clk 0:02:54.4]} 3. exd5 {[%clk 0:03:00.8]} 3... cxd5 {[%clk 0:02:54.5]} 4.
Bd3 {[%clk 0:03:01.3]} 4... Nc6 {[%clk 0:02:52.2]} 5. c3 {[%clk 0:03:00.4]} 5...
Nf6 {[%clk 0:02:51.9]} 6. h3 {[%clk 0:03:00.6]} 6... g6 {[%clk 0:02:44.9]} 7.
Nf3 {[%clk 0:02:59.4]} 7... Bf5 {[%clk 0:02:45.4]} 8. O-O {[%clk 0:02:58.8]}
8... Bxd3 {[%clk 0:02:45.1]} 9. Qxd3 {[%clk 0:02:59.7]} 9... Bg7 {[%clk
0:02:43.9]} 10. Bf4 {[%clk 0:02:59.7]} 10... O-O {[%clk 0:02:44.4]} 11. Nbd2
{[%clk 0:03:00.3]} 11... a6 {[%clk 0:02:37.7]} 12. Rfe1 {[%clk 0:02:59.3]} 12...
b5 {[%clk 0:02:34.8]} 13. b4 {[%clk 0:02:51.5]} 13... Qd7 {[%clk 0:02:26.3]} 14.
Nb3 {[%clk 0:02:49.6]} 14... Ne4 {[%clk 0:02:22]} 15. a4 {[%clk 0:02:28.7]}
15... bxa4 {[%clk 0:02:19.2]} 16. Nc5 {[%clk 0:02:29.2]} 16... Nxc5 {[%clk
0:02:12.4]} 17. bxc5 {[%clk 0:02:22.7]} 17... f6 {[%clk 0:01:45.6]} 18. Qc2
{[%clk 0:01:56.5]} 18... Rfe8 {[%clk 0:01:30.3]} 19. Rxa4 {[%clk 0:00:50.2]}
19... e5 {[%clk 0:01:26.9]} 20. Be3 {[%clk 0:00:50.5]} 20... a5 {[%clk 0:01:06]}
21. Rb1 {[%clk 0:00:48.8]} 21... Rab8 {[%clk 0:01:04.4]} 22. Rb6 {[%clk
0:00:43.7]} 22... Rxb6 {[%clk 0:00:53.1]} 23. cxb6 {[%clk 0:00:44.6]} 23... Rb8
{[%clk 0:00:38.9]} 24. c4 {[%clk 0:00:24.4]} 24... Rxb6 {[%clk 0:00:15.6]} 25.
dxe5 {[%clk 0:00:24.1]} 25... d4 {[%clk 0:00:15.9]} 26. c5 {[%clk 0:00:22.7]}
26... Rb8 {[%clk 0:00:05.4]} 27. Nxd4 {[%clk 0:00:22.5]} 27... Nxe5 {[%clk
0:00:05]} 28. Rxa5 {[%clk 0:00:21.5]} 28... f5 {[%clk 0:00:03.8]} 29. c6 {[%clk
0:00:19.5]} 29... Qc7 {[%clk 0:00:03.9]} 30. Qa2+ {[%clk 0:00:18.5]} 30... Kh8
{[%clk 0:00:03]} 31. Ra7 {[%clk 0:00:19.2]} 31... Qc8 {[%clk 0:00:01.8]} 32. Ne6
{[%clk 0:00:19.3]} 32... Nxc6 {[%clk 0:00:01.4]} 33. Rxg7 {[%clk 0:00:18.5]} 1-0

[Event "Early-Titled-Tuesday-Blitz-September-05-2023"]
[Site "Chess.com"]
[Date "2023.09.05"]
[Round "3"]
[White "Alexei_Gubajdullin"]
[Black "chenrip"]
[Result "1-0"]
[WhiteElo "2591"]
[BlackElo "2402"]
[TimeControl "180+1"]
[EndTime "8:27:28 PDT"]
[Termination "Alexei_Gubajdullin won on time"]

1. d4 {[%clk 0:03:00]} 1... d5 {[%clk 0:00:53.8]} 2. Nf3 {[%clk 0:02:51.3]} 2...
Nf6 {[%clk 0:00:53]} 3. Bf4 {[%clk 0:02:46.6]} 3... e6 {[%clk 0:00:53.4]} 4. e3
{[%clk 0:02:34.3]} 4... c5 {[%clk 0:00:52.9]} 5. Nbd2 {[%clk 0:02:32.2]} 5...
Bd7 {[%clk 0:00:52.9]} 6. c3 {[%clk 0:02:31]} 6... Be7 {[%clk 0:00:52.6]} 7. Bd3
{[%clk 0:02:20.8]} 7... Nc6 {[%clk 0:00:51.6]} 8. Ne5 {[%clk 0:02:13.4]} 8...
Nxe5 {[%clk 0:00:49.8]} 9. dxe5 {[%clk 0:02:10.9]} 9... Ng8 {[%clk 0:00:49.5]}
10. h4 {[%clk 0:02:09.4]} 10... Qb6 {[%clk 0:00:48.8]} 11. Rb1 {[%clk
0:02:05.1]} 11... O-O-O {[%clk 0:00:47.1]} 12. Qe2 {[%clk 0:01:58.6]} 12... Kb8
{[%clk 0:00:46.3]} 13. h5 {[%clk 0:01:56.2]} 13... Ka8 {[%clk 0:00:41.4]} 14.
O-O {[%clk 0:01:44.1]} 14... g6 {[%clk 0:00:35]} 15. c4 {[%clk 0:01:42.9]} 15...
Bc6 {[%clk 0:00:22.6]} 16. cxd5 {[%clk 0:01:37.2]} 16... exd5 {[%clk 0:00:21.4]}
17. b4 {[%clk 0:01:28]} 17... c4 {[%clk 0:00:21.4]} 18. Bc2 {[%clk 0:01:21.4]}
18... f6 {[%clk 0:00:18.6]} 19. b5 {[%clk 0:01:16.1]} 19... Bd7 {[%clk
0:00:16.7]} 20. Nf3 {[%clk 0:01:14.4]} 20... fxe5 {[%clk 0:00:15]} 21. Bxe5
{[%clk 0:01:13.8]} 21... Bf6 {[%clk 0:00:14.7]} 22. a4 {[%clk 0:01:13.3]} 22...
gxh5 {[%clk 0:00:12.7]} 23. a5 {[%clk 0:01:09.2]} 23... Qe6 {[%clk 0:00:13.2]}
24. Bd4 {[%clk 0:01:04]} 24... Bxd4 {[%clk 0:00:11.1]} 25. Nxd4 {[%clk
0:01:03.9]} 25... Qg4 {[%clk 0:00:11.1]} 26. f3 {[%clk 0:01:00.5]} 26... Qg3
{[%clk 0:00:09.7]} 27. a6 {[%clk 0:00:20.8]} 27... b6 {[%clk 0:00:08.9]} 28. e4
{[%clk 0:00:19.4]} 28... Nf6 {[%clk 0:00:04]} 29. exd5 {[%clk 0:00:18.7]} 29...
Rde8 {[%clk 0:00:03.2]} 30. Qxc4 {[%clk 0:00:11.5]} 1-0

[Event "Early-Titled-Tuesday-Blitz-September-05-2023"]
[Site "Chess.com"]
[Date "2023.09.05"]
[Round "3"]
[White "DenLaz"]
[Black "MarcoRiehle"]
[Result "1-0"]
[WhiteElo "3073"]
[BlackElo "2803"]
[TimeControl "180+1"]
[EndTime "8:27:29 PDT"]
[Termination "DenLaz won on time"]

1. d4 {[%clk 0:03:00.9]} 1... d5 {[%clk 0:02:57]} 2. c4 {[%clk 0:03:01.4]} 2...
e6 {[%clk 0:02:56.8]} 3. Nf3 {[%clk 0:03:01.7]} 3... Nf6 {[%clk 0:02:57.1]} 4.
g3 {[%clk 0:03:02.3]} 4... dxc4 {[%clk 0:02:56.3]} 5. Bg2 {[%clk 0:03:02.4]}
5... Bb4+ {[%clk 0:02:56.5]} 6. Bd2 {[%clk 0:03:03]} 6... a5 {[%clk 0:02:57.1]}
7. a3 {[%clk 0:03:03.7]} 7... Bxd2+ {[%clk 0:02:56.9]} 8. Nbxd2 {[%clk 0:03:04]}
8... b5 {[%clk 0:02:56.1]} 9. b3 {[%clk 0:03:04.1]} 9... cxb3 {[%clk 0:02:52.7]}
10. Qxb3 {[%clk 0:03:05]} 10... Bd7 {[%clk 0:02:46.9]} 11. O-O {[%clk
0:03:03.9]} 11... O-O {[%clk 0:02:41.5]} 12. Rfc1 {[%clk 0:03:02.2]} 12... Bc6
{[%clk 0:02:38.5]} 13. Qb2 {[%clk 0:02:54.1]} 13... a4 {[%clk 0:02:32.3]} 14.
Rc2 {[%clk 0:02:46.4]} 14... Bxf3 {[%clk 0:02:04.2]} 15. Nxf3 {[%clk 0:02:37.5]}
15... c6 {[%clk 0:02:02.1]} 16. Ne5 {[%clk 0:02:35.3]} 16... Nd5 {[%clk
0:01:54.4]} 17. Nxc6 {[%clk 0:02:28.1]} 17... Nxc6 {[%clk 0:01:54]} 18. Rxc6
{[%clk 0:02:29]} 18... Rb8 {[%clk 0:01:54]} 19. Rc5 {[%clk 0:02:27.6]} 19... b4
{[%clk 0:01:43.7]} 20. Bxd5 {[%clk 0:02:22.9]} 20... bxa3 {[%clk 0:01:43.5]} 21.
Qxa3 {[%clk 0:02:20.1]} 21... exd5 {[%clk 0:01:43.4]} 22. Qxa4 {[%clk
0:02:16.7]} 22... Qe7 {[%clk 0:01:42.1]} 23. Qc2 {[%clk 0:02:09.8]} 23... Rfd8
{[%clk 0:01:37.6]} 24. e3 {[%clk 0:02:08.5]} 24... g6 {[%clk 0:01:36.2]} 25. Kg2
{[%clk 0:02:06.9]} 25... h5 {[%clk 0:01:36]} 26. Raa5 {[%clk 0:02:01.5]} 26...
h4 {[%clk 0:01:31.7]} 27. g4 {[%clk 0:01:24.4]} 27... Rb6 {[%clk 0:01:09.5]} 28.
h3 {[%clk 0:01:19.5]} 28... Qe6 {[%clk 0:00:58.8]} 29. Qe2 {[%clk 0:01:07.7]}
29... Kg7 {[%clk 0:00:34.6]} 30. Qf3 {[%clk 0:01:04.1]} 30... Rbd6 {[%clk
0:00:34.9]} 31. Qf4 {[%clk 0:01:00.3]} 31... Rb6 {[%clk 0:00:30.8]} 32. g5
{[%clk 0:00:42.3]} 32... Rb2 {[%clk 0:00:17]} 33. Ra7 {[%clk 0:00:36.1]} 33...
Rd7 {[%clk 0:00:04.9]} 34. Qf6+ {[%clk 0:00:33]} 34... Kh7 {[%clk 0:00:04.1]}
35. Qxe6 {[%clk 0:00:32.6]} 35... Rxa7 {[%clk 0:00:04]} 36. Qf6 {[%clk
0:00:31.5]} 36... Rb8 {[%clk 0:00:03.3]} 37. Rxd5 {[%clk 0:00:30]} 37... Ra2
{[%clk 0:00:02.7]} 38. Re5 {[%clk 0:00:29.3]} 38... Rc8 {[%clk 0:00:01.8]} 39.
Re4 {[%clk 0:00:29.4]} 39... Rxf2+ {[%clk 0:00:01.2]} 40. Kxf2 {[%clk
0:00:29.5]} 40... Kg8 {[%clk 0:00:01.4]} 41. Rxh4 {[%clk 0:00:29.1]} 1-0